Workbook

Sheet Лист1
A1: Школа | C1: МБОУ СОШ д.Кшлау-Елга | F1: Утвердил: | G1: должность | H1: Директор
A2: Типовое примерное меню приготавливаемых блюд | G2: фамилия | H2: Суфиярова З.Р
A3: Возрастная категория | E3: 11-18 лет | G3: дата | H3: 2025-01-01
A5: Неделя | B5: День недели | C5: Прием пищи | D5: Раздел меню | E5: Блюда | F5: Вес блюда, г | G5: Белки | H5: Жиры | I5: Углеводы | J5: Калорийность | K5: № рецептуры | L5: Цена
A6: 1 | B6: 1 | C6: Завтрак | D6: гор.блюдо | E6: Плов из говядины | F6: 200 | G6: 20.9 | H6: 20.1 | I6: 30.5 | J6: 393 | K6: 42 | L6: 81.94
D7: гарнир
D8: гор.напиток | E8: Чай с сахаром | F8: 200 | G8: 0.1 | H8: 0 | I8: 9.1 | J8: 35 | K8: 12 | L8: 4.92
D9: хлеб | E9: Хлеб пшеничный | F9: 60 | G9: 5.46 | H9: 0.48 | I9: 29.52 | J9: 141 | K9: 6 | L9: 4.15
D10: напиток | E10: Сок для детского питания | F10: 200 | G10: 0 | H10: 0 | I10: 11.2 | J10: 45 | K10: 40 | L10: 25
D13: итого | F13: =SUM(F6:F12) -> 660 | G13: =SUM(G6:G12) -> 26.46 | H13: 20.58 | I13: 80.32 | J13: 614 | L13: 116.01
A14: =A6 -> 1 | B14: =B6 -> 1 | C14: Обед | D14: закуска
D15: 1 блюдо
D16: 2 блюдо
D17: гарнир
D18: напиток
D19: хлеб бел.
D20: хлеб черн.
A24: =A6 -> 1 | B24: =B6 -> 1 | C24: Итого за день:
A25: 1 | B25: 2 | C25: Завтрак | D25: гор.блюдо | E25: Каша молочная "Дружба" | F25: 257 | G25: 7.7 | H25: 10.6 | I25: 41 | J25: 291 | K25: 46 | L25: 18.87
D27: гор.напиток | E27: Компот из яблок с лимоном | F27: 200 | G27: 0.25 | H27: 0.25 | I27: 25.35 | J27: 104 | K27: 81 | L27: 12.2
D28: хлеб | E28: Хлеб пшеничный | F28: 60 | G28: 5.46 | H28: 0.48 | I28: 29.52 | J28: 141 | K28: 6 | L28: 4.15
D29: кис. Молоч | E29: Сыр (порциями) | F29: 10 | G29: 2.63 | H29: 2.63 | I29: 0 | J29: 35 | K29: 5 | L29: 8.2
D31: кисломолочное | E31: йогурт йодированный для детского питания | F31: 100 | G31: 2.8 | H31: 3.2 | I31: 10.1 | J31: 82 | K31: 39 | L31: 48
D32: итого | F32: =SUM(F25:F31) -> 627 | G32: =SUM(G25:G31) -> 18.84 | H32: 17.16 | I32: 105.97 | J32: 653 | L32: 91.42
A33: =A25 -> 1 | B33: =B25 -> 2 | C33: Обед | D33: закуска
D34: 1 блюдо
D35: 2 блюдо
D36: гарнир
D37: напиток
D38: хлеб бел.
D39: хлеб черн.
A43: =A25 -> 1 | B43: =B25 -> 2 | C43: Итого за день:
A44: 1 | B44: 3 | C44: Завтрак | D44: гор.блюдо | E44: Каша"Артек"молочная вязкая | F44: 257 | G44: 10 | H44: 10.1 | I44: 51.1 | J44: 336 | K44: 16 | L44: 19.2
D45: гарнир
D46: гор.напиток | E46: Чай с сахаром | F46: 200 | G46: 0.1 | H46: 0 | I46: 9.1 | J46: 35 | K46: 12 | L46: 4.92
D47: хлеб | E47: Хлеб пшеничный | F47: 60 | G47: 5.46 | H47: 0.48 | I47: 29.52 | J47: 141 | K47: 6 | L47: 4.15
D48: булочное | E48: Булочка домашняя | F48: 100 | G48: 7.3 | H48: 11.7 | I48: 55.4 | J48: 358 | K48: 48 | L48: 29
D51: итого | F51: =SUM(F44:F50) -> 617 | G51: 20.06 | H51: =SUM(H44:H50) -> 22.28 | I51: 130.82 | J51: 870 | L51: 57.27
A52: =A44 -> 1 | B52: =B44 -> 3 | C52: Обед | D52: закуска
D53: 1 блюдо
D54: 2 блюдо
D55: гарнир
D56: напиток
D57: хлеб бел.
D58: хлеб черн.
A62: =A44 -> 1 | B62: =B44 -> 3 | C62: Итого за день:
A63: 1 | B63: 4 | C63: Завтрак | D63: гор.блюдо | E63: Гуляш из говядины | F63: 100 | G63: 16.4 | H63: 17.1 | I63: 2, 7 | J63: 232 | K63: 30 | L63: 70.47
D64: гарнир | E64: Каша гречневая рассыпчатая | F64: 250/7 | G64: 14.4 | H64: 9.4 | I64: 63 | J64: 401 | K64: 77 | L64: 17.61
D65: гор.напиток | E65: Какао с молоком | F65: 200 | G65: 3.3 | H65: 3.1 | I65: 13.6 | J65: 94 | K65: 25 | L65: 10.47
D66: хлеб | E66: Хлеб пшеничный | F66: 60 | G66: 5.46 | H66: 0.48 | I66: 29.52 | J66: 141 | K66: 6 | L66: 4.15
D67: фрукты
D70: итого | F70: 617 | G70: =SUM(G63:G69) -> 39.56 | H70: 30.08 | I70: 108.82 | J70: 868 | L70: 102.7
A71: =A63 -> 1 | B71: =B63 -> 4 | C71: Обед | D71: закуска
D72: 1 блюдо
D73: 2 блюдо
D74: гарнир
D75: напиток
D76: хлеб бел.
D77: хлеб черн.
A81: =A63 -> 1 | B81: =B63 -> 4 | C81: Итого за день:
A82: 1 | B82: 5 | C82: Завтрак | D82: гор.блюдо | E82: Котлеты из мяса говядины с соус. сметанным | F82: 80/30 | G82: 16.2 | H82: 14.5 | I82: 13.9 | J82: 252 | K82: 52 | L82: 34.32
D83: гарнир | E83: Картофель по деревенски | F83: 180 | G83: 5.22 | H83: 6.3 | I83: 42 | J83: 247 | K83: 78. | L83: 16.17
D84: гор.напиток | E84: Чай с сахаром | F84: 200 | G84: 0.1 | H84: 0 | I84: 9.1 | J84: 35 | K84: 12 | L84: 4.92
D85: хлеб | E85: Хлеб пшеничный | F85: 60 | G85: 5.46 | H85: 0.48 | I85: 29.52 | J85: 141 | K85: 6 | L85: 4.15
D86: напиток | E86: Сок для детского питания | F86: 200 | G86: 0 | H86: 0 | I86: 11.2 | J86: 45 | K86: 40 | L86: 25
D87: закуска
D89: итого | F89: 750 | G89: =SUM(G82:G88) -> 26.98 | H89: 21.28 | I89: 105.72 | J89: 720 | L89: 84.56
A90: =A82 -> 1 | B90: =B82 -> 5 | C90: Обед | D90: закуска
D91: 1 блюдо
D92: 2 блюдо
D93: гарнир
D94: напиток
D95: хлеб бел.
D96: хлеб черн.
D97: булочное
D98: фрукты
A100: =A82 -> 1 | B100: =B82 -> 5 | C100: Итого за день:
A101: 2 | B101: 1 | C101: Завтрак | D101: гор.блюдо | E101: Гуляш из говядины | F101: 100 | G101: 16.4 | H101: 17.1 | I101: 2.7 | J101: 232 | K101: 30 | L101: 78.09
D102: гарнир | E102: Макаронные изделия отварные с маслом | F102: 185 | G102: 6.6 | H102: 4.7 | I102: 39.4 | J102: 230 | K102: 24 | L102: 9.85
D103: гор.напиток | E103: Чай с сахаром | F103: 200 | G103: 0.1 | H103: 0 | I103: 9.1 | J103: 35 | K103: 12 | L103: 4.92
D104: хлеб | E104: Хлеб пшеничный | F104: 60 | G104: 5.46 | H104: 0.48 | I104: 29.52 | J104: 141 | K104: 6 | L104: 4.15
D105: фрукты
D108: итого | F108: =SUM(F101:F107) -> 545 | G108: =SUM(G101:G107) -> 28.56 | H108: 22.28 | I108: 80.72 | J108: 638 | L108: 97.01
A109: =A101 -> 2 | B109: =B101 -> 1 | C109: Обед | D109: закуска
D110: 1 блюдо
D111: 2 блюдо
D112: гарнир
D113: напиток
D114: хлеб бел.
D115: хлеб черн.
A119: =A101 -> 2 | B119: =B101 -> 1 | C119: Итого за день:
A120: 2 | B120: 2 | C120: Завтрак | D120: гор.блюдо | E120: Фрикадельки из птицы | F120: 105 | G120: 19.1 | H120: 1.8 | I120: 9.4 | J120: 131 | K120: 36 | L120: 46.87
D121: гарнир | E121: Каша рисовая молочная вязкая | F121: 185 | G121: 5.2 | H121: 7.2 | I121: 36.1 | J121: 231 | K121: 23 | L121: 23.87
D122: гор.напиток | E122: Чай с лимоном и сахаром | F122: 200 | G122: 0.1 | H122: 0 | I122: 9.3 | J122: 37 | K122: 11 | L122: 7.92
D123: хлеб | E123: Хлеб пшеничный | F123: 60 | G123: 5.46 | H123: 0.48 | I123: 29.52 | J123: 141 | K123: 6 | L123: 4.15
D124: фрукты
D125: булочное
D127: итого | F127: =SUM(F120:F126) -> 550 | G127: =SUM(G120:G126) -> 29.86 | H127: 9.48 | I127: 84.32 | J127: 540 | L127: 82.81
A128: =A120 -> 2 | B128: =B120 -> 2 | C128: Обед | D128: закуска
D129: 1 блюдо
D130: 2 блюдо
D131: гарнир
D132: напиток
D133: хлеб бел.
D134: хлеб черн.
A138: =A120 -> 2 | B138: =B120 -> 2 | C138: Итого за день:
A139: 2 | B139: 3 | C139: Завтрак | D139: гор.блюдо | E139: Макароны, запеченные с сыром | F139: 180 | G139: 8.8 | H139: 14.2 | I139: 29.4 | J139: 284 | K139: 24 | L139: 32.38
D140: гарнир
D141: гор.напиток | E141: Какао с молоком | F141: 200 | G141: 3.6 | H141: 3.3 | I141: 13.7 | J141: 98 | K141: 25 | L141: 10.47
D142: хлеб | E142: Хлеб пшеничный | F142: 60 | G142: 5.46 | H142: 0.48 | I142: 29.52 | J142: 141 | K142: 6 | L142: 4.15
D144: напиток | E144: Сок для детского питания | F144: 200 | G144: 0 | H144: 0 | I144: 11.2 | J144: 45 | K144: 40 | L144: 25
D146: итого | F146: =SUM(F139:F145) -> 640 | G146: =SUM(G139:G145) -> 17.86 | H146: 17.98 | I146: 83.82 | J146: 568 | L146: 72
A147: =A139 -> 2 | B147: =B139 -> 3 | C147: Обед | D147: закуска
D148: 1 блюдо
D149: 2 блюдо
D150: гарнир
D151: напиток
D152: хлеб бел.
D153: хлеб черн.
D154: напиток
A157: =A139 -> 2 | B157: =B139 -> 3 | C157: Итого за день:
A158: 2 | B158: 4 | C158: Завтрак | D158: гор.блюдо
D159: гарнир | E159: Каша молочная "Дружба" | F159: 257 | G159: 7.7 | H159: 10.6 | I159: 41 | J159: 291 | K159: 46 | L159: 21.43
D160: гор.напиток | E160: Кисель из концентрата на плодовых или ягодных экстрактах | F160: 200 | G160: 0 | H160: 0 | I160: 20 | J160: 76 | K160: 29 | L160: 7 ,15
D161: хлеб | E161: Хлеб пшеничный | F161: 60 | G161: 5.46 | H161: 0.48 | I161: 29.52 | J161: 141 | K161: 6 | L161: 4.15
D163: кисломолоч | E163: Сыр (порциями) | F163: 10 | G163: 2.63 | H163: 2.63 | I163: 0 | J163: 35 | K163: 5 | L163: 8.2
D165: итого | F165: =SUM(F158:F164) -> 527 | G165: =SUM(G158:G164) -> 15.79 | H165: 13.71 | I165: 90.52 | J165: 543 | L165: 40.93
A166: =A158 -> 2 | B166: =B158 -> 4 | C166: Обед | D166: закуска
D167: 1 блюдо
D168: 2 блюдо
D169: гарнир
D170: напиток
D171: хлеб бел.
D172: хлеб черн.
D173: Кисломолочное
A176: =A158 -> 2 | B176: =B158 -> 4 | C176: Итого за день:
A177: 2 | B177: 5 | C177: Завтрак | D177: гор.блюдо | E177: Каша "Артек" молочная вязкая | F177: 257 | G177: 10 | H177: 10 | I177: 51.1 | J177: 336 | K177: 16 | L177: 21.11
D179: гор.напиток | E179: Чай с сахаром | F179: 200 | G179: 0.1 | H179: 0 | I179: 9.1 | J179: 35 | K179: 12 | L179: 4.92
D180: хлеб | E180: Хлеб пшеничный | F180: 60 | G180: 5.46 | H180: 0.48 | I180: 29.52 | J180: 141 | K180: 6 | L180: 4.15
D181: напиток | E181: Яблоко | F181: 100 | G181: 0.4 | H181: 0.4 | I181: 9.8 | J181: 47 | K181: 4 | L181: 14.5
D184: итого | F184: =SUM(F177:F183) -> 617 | G184: =SUM(G177:G183) -> 15.96 | H184: 10.88 | I184: 99.52 | J184: 559 | L184: 44.68
A185: =A177 -> 2 | B185: =B177 -> 5 | C185: Обед | D185: закуска
D186: 1 блюдо
D187: 2 блюдо
D188: гарнир
D189: напиток
D190: хлеб бел.
D191: хлеб черн.
A195: =A177 -> 2 | B195: =B177 -> 5 | C195: Итого за день:
